fUSD/lending_fUSD_20240905
["ID","MTS","AMOUNT","RATE_DAILY","PERIOD"]
[337283440,1725576641804,-685.13,0.00014599,2]
[337283441,1725576641813,-685.13,0.00014599,2]
[337283442,1725576641822,-685.13,0.00014599,2]
[337283443,1725576641831,-685.13,0.00014599,2]
[337283444,1725576641841,-685.13,0.00014599,2]
[337283445,1725576641850,-685.13,0.00014599,2]
[337283446,1725576641859,-685.13,0.00014599,2]
[337283447,1725576641868,-685.27524591,0.00014599,2]
[337283448,1725576641879,-151.0,0.00014599,2]
[337283449,1725576641888,-213.954881,0.00014599,2]
[337283450,1725576641898,-151.0,0.00014599,2]
[337283451,1725576641909,-151.0,0.00014599,2]
[337283452,1725576641920,-151.0,0.00014599,2]
[337283453,1725576641930,-151.0,0.00014599,2]
[337283454,1725576641940,-151.0,0.00014599,2]
[337283455,1725576641950,-151.0,0.00014599,2]
[337283456,1725576641959,-268.595391,0.00014599,2]
[337283457,1725576641968,-151.0,0.00014599,2]
[337283458,1725576641977,-207.90551,0.00014599,2]
[337283459,1725576641987,-151.0,0.00014599,2]
[337283460,1725576641996,-151.0,0.00014599,2]
[337283461,1725576642006,-151.0,0.00014599,2]
[337283462,1725576642015,-158.899984,0.00014599,2]
[337283463,1725576642025,-151.0,0.00014599,2]
[337283464,1725576642035,-151.0,0.00014599,2]
[337283465,1725576642044,-151.0,0.00014599,2]
[337283466,1725576642054,-151.0,0.00014599,2]
[337283467,1725576642063,-262.40554,0.00014599,2]
[337283468,1725576642073,-500.0,0.00014599,2]
[337283469,1725576642082,-500.0,0.00014599,2]
[337283470,1725576642091,-500.0,0.00014599,2]
[337283471,1725576642100,-500.0,0.00014599,2]
[337283472,1725576642109,-500.0,0.00014599,2]
[337283473,1725576642118,-500.0,0.00014599,2]
[337283474,1725576642127,-500.0,0.00014599,2]
[337283475,1725576642136,-500.0,0.00014599,2]
[337283476,1725576642146,-500.0,0.00014599,2]
[337283477,1725576642155,-500.0,0.00014599,2]
[337283478,1725576642164,-500.0,0.00014599,2]
[337283479,1725576642174,-500.0,0.00014599,2]
[337283480,1725576642183,-500.0,0.00014599,2]
[337283481,1725576642193,-500.0,0.00014599,2]
[337283482,1725576642202,-500.0,0.00014599,2]
[337283483,1725576642211,-170.14,0.00014599,2]
[337283484,1725576642221,-1216.64,0.00014599,2]
[337283485,1725576642230,-1216.64,0.00014599,2]
[337283486,1725576642239,-1216.64,0.00014599,2]
[337283487,1725576642248,-1216.64,0.00014599,2]
[337283488,1725576642258,-1216.64,0.00014599,2]
[337283489,1725576642267,-1216.64,0.00014599,2]
[337283490,1725576642276,-1216.64,0.00014599,2]
[337283491,1725576642287,-1216.64,0.00014599,2]
[337283492,1725576642298,-1216.64,0.00014599,2]
[337283493,1725576642308,-1216.64,0.00014599,2]
[337283494,1725576642317,-1216.64,0.00014599,2]
[337283495,1725576642327,-1216.64,0.00014599,2]
[337283496,1725576642336,-1216.64,0.00014599,2]
[337283497,1725576642346,-1216.64,0.00014599,2]
[337283498,1725576642355,-1216.64,0.00014599,2]
[337283500,1725576642364,-1216.64,0.00014599,2]
[337283502,1725576642373,-151.0,0.00014599,2]
[337283504,1725576642382,-1216.64,0.00014599,2]
[337283506,1725576642392,-151.0,0.00014599,2]
[337283507,1725576642401,-1216.64,0.00014599,2]
[337283508,1725576642411,-151.0,0.00014599,2]
[337283509,1725576642420,-639.58,0.00014599,2]
[337283510,1725576642430,-639.58,0.00014599,2]
[337283511,1725576642439,-639.58,0.00014599,2]
[337283512,1725576642448,-639.58,0.00014599,2]
[337283513,1725576642458,-151.0,0.00014599,2]
[337283514,1725576642467,-151.0,0.00014599,2]
[337283515,1725576642477,-639.58,0.00014599,2]
[337283516,1725576642486,-151.0,0.00014599,2]
[337283517,1725576642495,-639.58,0.00014599,2]
[337283518,1725576642504,-151.0,0.00014599,2]
[337283519,1725576642514,-639.58,0.00014599,2]
[337283521,1725576642523,-639.58,0.00014599,2]
[337283524,1725576642533,-639.58,0.00014599,2]
[337283525,1725576642542,-639.58,0.00014599,2]
[337283526,1725576642551,-639.58,0.00014599,2]
[337283527,1725576642564,-639.58,0.00014599,2]
[337283528,1725576642572,-639.58,0.00014599,2]
[337283529,1725576642582,-639.58,0.00014599,2]
[337283530,1725576642591,-639.58,0.00014599,2]
[337283531,1725576642601,-639.58,0.00014599,2]
[337283532,1725576642610,-639.58,0.00014599,2]
[337283533,1725576642620,-639.79865934,0.00014599,2]
[337283534,1725576642629,-23928.15,0.00014599,2]
[337283535,1725576642639,-23928.15,0.00014599,2]
[337283536,1725576642649,-23928.15,0.00014599,2]
[337283537,1725576642658,-23928.15,0.00014599,2]
[337283538,1725576642667,-23928.15,0.00014599,2]
[337283539,1725576642676,-23928.15,0.00014599,2]
[337283540,1725576642685,-23928.15,0.00014599,2]
[337283541,1725576642694,-23928.15,0.00014599,2]
[337283542,1725576642704,-23928.15,0.00014599,2]
[337283543,1725576642713,-23928.15,0.00014599,2]
[337283544,1725576642723,-23928.15,0.00014599,2]
[337283545,1725576642732,-23928.15,0.00014599,2]
[337283546,1725576642741,-23928.15,0.00014599,2]
[337283547,1725576642751,-23928.15,0.00014599,2]
[337283548,1725576642760,-23928.15,0.00014599,2]
[337283549,1725576642770,-23928.15,0.00014599,2]
[337283550,1725576642779,-23928.15,0.00014599,2]
[337283551,1725576642788,-23928.23061465,0.00014599,2]
[337283552,1725576642797,-806.3,0.00014599,2]
[337283553,1725576642808,-806.3,0.00014599,2]
[337283554,1725576642817,-806.3,0.00014599,2]
[337283555,1725576642828,-806.3,0.00014599,2]
[337283556,1725576642837,-806.3,0.00014599,2]
[337283557,1725576642847,-565.27,0.00014599,2]
[337283558,1725576642858,-806.3,0.00014599,2]
[337283559,1725576642868,-565.27,0.00014599,2]
[337283560,1725576642878,-565.27,0.00014599,2]
[337283561,1725576642887,-806.3,0.00014599,2]
[337283562,1725576642898,-806.3,0.00014599,2]
[337283563,1725576642907,-806.3,0.00014599,2]
[337283564,1725576642917,-565.27,0.00014599,2]
[337283565,1725576642926,-806.3,0.00014599,2]
[337283566,1725576642935,-565.27,0.00014599,2]
[337283567,1725576642944,-565.27,0.00014599,2]
[337283568,1725576642953,-565.27,0.00014599,2]
[337283569,1725576642962,-806.3,0.00014599,2]
[337283570,1725576642972,-565.27,0.00014599,2]
[337283571,1725576642981,-806.3,0.00014599,2]
[337283572,1725576642990,-565.27,0.00014599,2]
[337283573,1725576642999,-806.3,0.00014599,2]
[337283574,1725576643009,-565.27,0.00014599,2]
[337283575,1725576643018,-806.3,0.00014599,2]
[337283576,1725576643028,-565.27,0.00014599,2]
[337283577,1725576643037,-806.3,0.00014599,2]
[337283578,1725576643046,-565.27,0.00014599,2]
[337283579,1725576643056,-806.51999095,0.00014599,2]
[337283580,1725576643066,-565.27,0.00014599,2]
[337283581,1725576643075,-565.27,0.00014599,2]
[337283582,1725576643086,-565.27,0.00014599,2]
[337283584,1725576643096,-565.34523683,0.00014599,2]
[337283586,1725576643105,-500.0,0.00014599,2]
[337283587,1725576643115,-500.0,0.00014599,2]
[337283589,1725576643124,-500.0,0.00014599,2]
[337283591,1725576643133,-500.0,0.00014599,2]
[337283592,1725576643142,-428.8,0.00014599,2]
[337283593,1725576643151,-463.2,0.00014599,2]
[337283594,1725576643160,-505.77,0.00014599,2]
[337283595,1725576643170,-505.77,0.00014599,2]
[337283596,1725576643179,-505.77,0.00014599,2]
[337283597,1725576643188,-505.77,0.00014599,2]
[337283598,1725576643197,-505.77,0.00014599,2]
[337283599,1725576643206,-505.77,0.00014599,2]
[337283600,1725576643215,-505.77,0.00014599,2]
[337283601,1725576643225,-505.77,0.00014599,2]
[337283602,1725576643234,-505.77,0.00014599,2]
[337283603,1725576643244,-505.77,0.00014599,2]
[337283604,1725576643254,-505.77,0.00014599,2]
[337283605,1725576643434,-505.77,0.00014599,2]
[337283606,1725576643444,-505.77,0.00014599,2]
[337283607,1725576643454,-505.77,0.00014599,2]
[337283608,1725576643464,-505.77,0.00014599,2]
[337283609,1725576643474,-237.28694,0.00014599,2]
[337283610,1725576643483,-505.77,0.00014599,2]
[337283611,1725576643493,-505.77,0.00014599,2]
[337283612,1725576643502,-505.82642672,0.00014599,2]
[337283613,1725576643511,-1042.890647,0.00014599,2]
[337283614,1725576643521,-1042.890647,0.00014599,2]
[337283615,1725576643530,-1042.890647,0.00014599,2]
[337283616,1725576643540,-1205.9,0.00014599,2]
[337283617,1725576643549,-1205.9,0.00014599,2]
[337283618,1725576643559,-1205.9,0.00014599,2]
[337283619,1725576643569,-1205.9,0.00014599,2]
[337283620,1725576643578,-1205.9,0.00014599,2]
[337283621,1725576643588,-1205.9,0.00014599,2]
[337283622,1725576643598,-155.618585,0.00014599,2]
[337283623,1725576643608,-1205.9,0.00014599,2]
[337283624,1725576643618,-1205.9,0.00014599,2]
[337283625,1725576643627,-1205.9,0.00014599,2]
[337283626,1725576643636,-1205.9,0.00014599,2]
[337283627,1725576643646,-1205.9,0.00014599,2]
[337283628,1725576643655,-1205.9,0.00014599,2]
[337283629,1725576643665,-1205.9,0.00014599,2]
[337283630,1725576643675,-1205.9,0.00014599,2]
[337283631,1725576643684,-1205.9,0.00014599,2]
[337283632,1725576643694,-1205.96236427,0.00014599,2]
[337283633,1725576643704,-1316.79,0.00014599,2]
[337283634,1725576643714,-1316.79,0.00014599,2]
[337283635,1725576643723,-1316.79,0.00014599,2]
[337283636,1725576643733,-1316.79,0.00014599,2]
[337283637,1725576643742,-1316.79,0.00014599,2]
[337283638,1725576643752,-1316.79,0.00014599,2]
[337283639,1725576643761,-1316.79,0.00014599,2]
[337283640,1725576643771,-1316.79,0.00014599,2]
[337283641,1725576643780,-1316.79,0.00014599,2]
[337283642,1725576643789,-1316.79,0.00014599,2]
[337283643,1725576643799,-1316.79,0.00014599,2]
[337283644,1725576643813,-1316.79,0.00014599,2]
[337283645,1725576643822,-1316.79,0.00014599,2]
[337283646,1725576643831,-1316.79,0.00014599,2]
[337283647,1725576643841,-1316.79,0.00014599,2]
[337283648,1725576643850,-603.38,0.00014599,2]
[337283649,1725576643859,-1316.79,0.00014599,2]
[337283650,1725576643869,-603.38,0.00014599,2]
[337283651,1725576643881,-1316.79,0.00014599,2]
[337283652,1725576643891,-603.38,0.00014599,2]
[337283653,1725576643901,-603.38,0.00014599,2]
[337283654,1725576643912,-1316.93535973,0.00014599,2]
[337283655,1725576643922,-603.38,0.00014599,2]
[337283656,1725576643933,-500.0,0.00014599,2]
[337283657,1725576643942,-603.38,0.00014599,2]
[337283658,1725576643952,-500.0,0.00014599,2]
[337283659,1725576643961,-603.38,0.00014599,2]
[337283660,1725576643971,-500.0,0.00014599,2]
[337283661,1725576643980,-603.38,0.00014599,2]
[337283662,1725576643989,-500.0,0.00014599,2]
[337283663,1725576643998,-603.38,0.00014599,2]
[337283664,1725576644007,-500.0,0.00014599,2]
[337283665,1725576644017,-603.38,0.00014599,2]
[337283666,1725576644026,-500.0,0.00014599,2]
[337283667,1725576644035,-603.38,0.00014599,2]
[337283668,1725576644045,-500.0,0.00014599,2]
[337283669,1725576644054,-603.38,0.00014599,2]
[337283670,1725576644064,-500.0,0.00014599,2]
[337283671,1725576644074,-603.38,0.00014599,2]
[337283672,1725576644083,-500.0,0.00014599,2]
[337283673,1725576644094,-603.38,0.00014599,2]
[337283674,1725576644104,-500.0,0.00014599,2]
[337283675,1725576644113,-500.0,0.00014599,2]
[337283676,1725576644123,-603.38,0.00014599,2]
[337283677,1725576644133,-500.0,0.00014599,2]
[337283678,1725576644142,-500.0,0.00014599,2]
[337283679,1725576644152,-603.43,0.00014599,2]
[337283680,1725576644161,-500.0,0.00014599,2]
[337283681,1725576644170,-335.66,0.00014599,2]
[337283682,1725576644180,-2480.83,0.00014599,2]
[337283683,1725576644190,-2480.83,0.00014599,2]
[337283684,1725576644199,-2480.83,0.00014599,2]
[337283685,1725576644209,-2480.83,0.00014599,2]
[337283686,1725576644218,-2480.83,0.00014599,2]
[337283687,1725576644228,-2480.83,0.00014599,2]
[337283688,1725576644237,-2480.83,0.00014599,2]
[337283689,1725576644246,-2480.83,0.00014599,2]
[337283690,1725576644256,-2480.83,0.00014599,2]
[337283691,1725576644265,-2480.83,0.00014599,2]
[337283692,1725576644275,-1484.63,0.00014599,2]
[337283693,1725576644284,-2480.83,0.00014599,2]
[337283694,1725576644294,-2480.83,0.00014599,2]
[337283695,1725576644304,-2480.83,0.00014599,2]
[337283696,1725576644314,-1484.63,0.00014599,2]
[337283697,1725576644323,-2480.83,0.00014599,2]
[337283698,1725576644333,-1484.63,0.00014599,2]
[337283699,1725576644343,-894.05388014,0.00014599,2]
[337283700,1725576644519,-590.57611986,0.00014599,2]
[337283701,1725576644529,-69.14820791,0.00014599,2]
[337283702,1725576644541,-638.24848553,0.00014599,2]
[337283703,1725576644559,-500.0,0.00014597,2]
[337283704,1725576644569,-343.27,0.00014599,2]
[337283705,1725576644580,-1430.16330656,0.00014599,2]
[337283706,1725576644590,-1484.63,0.00014599,2]
[337283707,1725576644599,-2480.83,0.00014599,2]
[337283708,1725576644609,-1484.63,0.00014599,2]
[337283709,1725576644618,-2480.83,0.00014599,2]
[337283710,1725576644628,-1484.63,0.00014599,2]
[337283711,1725576644638,-2480.96361985,0.00014599,2]
[337283712,1725576644647,-1484.63,0.00014599,2]
[337283713,1725576644657,-1484.63,0.00014599,2]
[337283714,1725576644666,-1484.63,0.00014599,2]
[337283715,1725576644676,-1484.63,0.00014599,2]
[337283716,1725576644685,-1484.63,0.00014599,2]
[337283717,1725576644695,-1484.63,0.00014599,2]
[337283718,1725576644704,-1484.63,0.00014599,2]
[337283719,1725576644713,-1484.63,0.00014599,2]
[337283720,1725576644723,-1484.8371067,0.00014599,2]
[337283721,1725576644732,-500.0,0.00014599,2]
[337283722,1725576644741,-500.0,0.00014599,2]
[337283723,1725576644750,-500.0,0.00014599,2]
[337283724,1725576644759,-500.0,0.00014599,2]
[337283725,1725576644769,-500.0,0.00014599,2]
[337283726,1725576644778,-500.0,0.00014599,2]
[337283727,1725576644787,-500.0,0.00014599,2]
[337283728,1725576644796,-582.08,0.00014599,2]
[337283729,1725576644810,-500.0,0.00014599,2]
[337283730,1725576644819,-582.08,0.00014599,2]
[337283731,1725576644828,-500.0,0.00014599,2]
[337283732,1725576644838,-582.08,0.00014599,2]
[337283733,1725576644848,-263.22921,0.00014599,2]
[337283734,1725576644857,-500.0,0.00014599,2]
[337283735,1725576644866,-582.08,0.00014599,2]
[337283736,1725576644875,-500.0,0.00014599,2]
[337283737,1725576644887,-263.22921,0.00014599,2]
[337283738,1725576644897,-532.84,0.00014599,2]
[337283739,1725576644906,-543.4032575,0.00014599,2]
[337283740,1725576644915,-582.08,0.00014599,2]
[337283741,1725576644925,-263.22921,0.00014599,2]
[337283742,1725576644934,-582.08,0.00014599,2]
[337283743,1725576644943,-263.22921,0.00014599,2]
[337283744,1725576644952,-532.84,0.00014599,2]
[337283745,1725576644961,-582.08,0.00014599,2]
[337283746,1725576644970,-263.22921,0.00014599,2]
[337283747,1725576644979,-532.84,0.00014599,2]
[337283748,1725576644988,-582.08,0.00014599,2]
[337283749,1725576644998,-532.84,0.00014599,2]
[337283750,1725576645007,-263.22921,0.00014599,2]
[337283751,1725576645016,-582.08,0.00014599,2]
[337283752,1725576645025,-582.08,0.00014599,2]
[337283753,1725576645034,-532.84,0.00014599,2]
[337283754,1725576645043,-582.08,0.00014599,2]
[337283755,1725576645052,-532.84,0.00014599,2]
[337283756,1725576645062,-582.08,0.00014599,2]
[337283757,1725576645071,-532.84,0.00014599,2]
[337283758,1725576645080,-582.08,0.00014599,2]
[337283759,1725576645090,-532.84,0.00014599,2]
[337283760,1725576645099,-93.72994681,0.00014599,2]
[337283761,1725576645147,-500.0,0.00014598,2]
[337283762,1725576645156,-187.06,0.00014598,2]
[337283763,1725576645167,-312.94,0.00014598,2]
[337283764,1725576645176,-500.0,0.00014598,2]
[337283765,1725576645185,-500.0,0.00014598,2]
[337283766,1725576645195,-245.55740916,0.00014598,2]
[337283767,1725576645208,-254.44259084,0.00014598,2]
[337283768,1725576645218,-169.49926319,0.00014599,2]
[337283769,1725576645230,-582.08,0.00014599,2]
[337283770,1725576645240,-207.11500994,0.00014599,2]
[337283771,1725576645251,-325.72499006,0.00014599,2]
[337283772,1725576645260,-28.61085843,0.00014599,2]
[337283773,1725576645272,-234.61835157,0.00014599,2]
[337283774,1725576645282,-532.84,0.00014599,2]
[337283775,1725576645293,-582.08,0.00014599,2]
[337283776,1725576645302,-263.22921,0.00014599,2]
[337283777,1725576645312,-532.84,0.00014599,2]
[337283778,1725576645322,-411.23173918,0.00014599,2]
[337283779,1725576645333,-170.84826082,0.00014599,2]
[337283780,1725576645343,-263.22921,0.00014599,2]
[337283781,1725576645354,-127.99088918,0.00014599,2]
[337283782,1725576645365,-404.84911082,0.00014599,2]
[337283783,1725576645374,-582.08,0.00014599,2]
[337283784,1725576645383,-263.22921,0.00014599,2]
[337283785,1725576645393,-532.84,0.00014599,2]
[337283786,1725576645403,-582.12,0.00014599,2]
[337283787,1725576645413,-532.84,0.00014599,2]
[337283788,1725576645423,-25.67167407,0.00014599,2]
[337283789,1725576645434,-237.55753693,0.00014599,2]
[337283790,1725576645444,-264.94134363,0.00014599,2]
[337283791,1725576645455,-267.89865637,0.00014599,2]
[337283792,1725576645464,-250.74506005,0.00014599,2]
[337283793,1725576645475,-282.12493995,0.00014599,2]
[337283794,1725576645485,-500.0,0.00014599,2]
[337283795,1725576645495,-500.0,0.00014599,2]
[337283796,1725576645505,-500.0,0.00014599,2]
[337283797,1725576645515,-500.0,0.00014599,2]
[337283798,1725576645525,-120.39254549,0.00014599,2]
[337283799,1725576645543,-379.60745451,0.00014599,2]
[337283800,1725576645552,-500.0,0.00014599,2]
[337283801,1725576645563,-500.0,0.00014599,2]
[337283802,1725576645572,-500.0,0.00014599,2]
[337283803,1725576645582,-500.0,0.00014599,2]
[337283804,1725576645592,-242.25,0.00014599,2]
[337283805,1725576645602,-218.67254549,0.00014599,2]
[337283806,1725576645614,-281.32745451,0.00014599,2]
[337283807,1725576645624,-500.0,0.00014599,2]
[337283808,1725576645634,-253.67254549,0.00014599,2]
[337283813,1725576645697,-246.32745451,0.00014599,2]
[337283814,1725576645707,-283.72,0.00014599,2]
[337283815,1725576645716,-2859.39,0.00014599,2]
[337283817,1725576645726,-2359.56254549,0.00014599,2]
[337283818,1725576645737,-499.82745451,0.00014599,2]
[337283819,1725576645746,-31.41484939,0.00014599,2]
[337283820,1725576645758,-405.79,0.00014599,2]
[337283821,1725576645769,-2422.18515061,0.00014599,2]
[337283822,1725576645778,-243.83319544,0.00014599,2]
[337283823,1725576645789,-2615.55680456,0.00014599,2]
[337283824,1725576645798,-1141.11119484,0.00014599,2]
[337283825,1725576645980,-4060.40956993,0.00013991,2]
[337283826,1725576645995,-694.512008,0.00013991,2]
[337283827,1725576646006,-446.25,0.00013991,2]
[337283828,1725576646021,-569.53933665,0.00013991,2]
[337283829,1725576646032,-1016.18242901,0.00013991,2]
[337283830,1725576646047,-301.25385499,0.00013991,2]
[337283831,1725576646059,-2911.85280142,0.00013991,2]
[337283832,1725576646069,-834.312518,0.00014588,2]
[337283833,1725576646078,-834.312518,0.00014593,2]
[337283834,1725576646087,-834.312518,0.00014598,2]
[337283835,1725576646097,-834.312518,0.00014598,2]
[337283836,1725576646106,-615.72712658,0.00014598,2]
[337283837,1725576646117,-218.58539142,0.00014598,2]
[337283838,1725576646127,-559.0,0.00014599,2]
[337283840,1725576646136,-1718.27880516,0.00014599,2]
[337283842,1725576646145,-2859.39,0.00014599,2]
[337283844,1725576646154,-2859.39,0.00014599,2]
[337283845,1725576646163,-2859.39,0.00014599,2]
[337283846,1725576646172,-2859.39,0.00014599,2]
[337283847,1725576646181,-2859.39,0.00014599,2]
[337283848,1725576646190,-2859.39,0.00014599,2]
[337283849,1725576646199,-2859.39,0.00014599,2]
[337283850,1725576646209,-2859.39,0.00014599,2]
[337283851,1725576646218,-1959.37333666,0.00014599,2]
[337283852,1725576646230,-900.01666334,0.00014599,2]
[337283853,1725576646240,-939.98333666,0.00014599,2]
[337283854,1725576646295,-834.312518,0.00014588,2]
[337283855,1725576646304,-21.89674624,0.00014593,2]
[337283856,1725576646320,-719.95798759,0.00014593,2]
[337283857,1725576646336,-92.45778417,0.00014593,2]
[337283858,1725576646345,-1372.81369326,0.00014598,2]
[337283859,1725576646355,-1919.40666334,0.00014599,2]
[337283860,1725576646364,-315.33804785,0.00014599,2]
[337283861,1725576646379,-834.312518,0.00014598,2]
[337283862,1725576646388,-78.03363292,0.00014599,2]
[337283863,1725576646400,-2466.22366145,0.00014599,2]
[337283864,1725576646409,-242.81564929,0.00014599,2]
[337283865,1725576646419,-286.68669669,0.00014599,2]
[337283866,1725576646430,-313.41765402,0.00014599,2]
[337283867,1725576646439,-360.18272331,0.00014599,2]
[337283868,1725576646450,-482.73727669,0.00014599,2]
[337283869,1725576646459,-842.92,0.00014599,2]
[337283870,1725576646468,-409.18898695,0.00014599,2]
[337283871,1725576646479,-379.93145526,0.00014599,2]
[337283872,1725576646490,-53.79955779,0.00014599,2]
[337283873,1725576646499,-795.3344279,0.00014599,2]
[337283874,1725576646510,-47.5855721,0.00014599,2]
[337283875,1725576646519,-731.87702584,0.00014599,2]
[337283876,1725576646530,-111.04297416,0.00014599,2]
[337283877,1725576646539,-842.92,0.00014599,2]
[337283878,1725576646548,-842.92,0.00014599,2]
[337283879,1725576646558,-842.92,0.00014599,2]
[337283880,1725576646567,-842.92,0.00014599,2]
[337283881,1725576646576,-842.92,0.00014599,2]
[337283882,1725576646585,-842.92,0.00014599,2]
[337283883,1725576646594,-842.92,0.00014599,2]
[337283884,1725576646603,-842.92,0.00014599,2]
[337283885,1725576646611,-842.92,0.00014599,2]
[337283886,1725576646620,-842.92,0.00014599,2]
[337283887,1725576646629,-842.92,0.00014599,2]
[337283888,1725576646638,-843.00844086,0.00014599,2]
[337283889,1725576646647,-500.0,0.00014599,2]
[337283890,1725576646656,-500.0,0.00014599,2]
[337283891,1725576646665,-500.0,0.00014599,2]
[337283892,1725576646673,-500.0,0.00014599,2]
[337283893,1725576646683,-500.0,0.00014599,2]
[337283894,1725576646693,-500.0,0.00014599,2]
[337283895,1725576646701,-500.0,0.00014599,2]
[337283896,1725576646711,-500.0,0.00014599,2]
[337283897,1725576646723,-426.31857035,0.00014599,2]
[337283898,1725576646734,-775.69,0.00014599,2]
[337283899,1725576646744,-775.69,0.00014599,2]
[337283900,1725576646754,-775.69,0.00014599,2]
[337283901,1725576646763,-432.68121291,0.00014599,2]
[337283902,1725576646775,-343.00878709,0.00014599,2]
[337283903,1725576646784,-775.69,0.00014599,2]
[337283904,1725576646794,-775.69,0.00014599,2]
[337283905,1725576646803,-554.60151361,0.00014599,2]
[337283906,1725576646817,-221.08848639,0.00014599,2]
[337283907,1725576646826,-775.69,0.00014599,2]
[337283908,1725576646835,-775.69,0.00014599,2]
[337283909,1725576646846,-775.69,0.00014599,2]
[337283910,1725576646856,-775.69,0.00014599,2]
[337283911,1725576646866,-775.69,0.00014599,2]
[337283912,1725576646877,-775.69,0.00014599,2]
[337283913,1725576646890,-775.69,0.00014599,2]
[337283914,1725576646899,-74.18331393,0.00014599,2]
[337283923,1725576754032,201.68,0.00011801,2]
[337283924,1725576807516,500.0,0.0002565,120]
[337283925,1725576833392,250.0,0.00013075,2]
[337283926,1725576845623,250.0,0.00013075,2]
[337283934,1725577266015,181.04,0.00012936,2]
[337283935,1725577287522,191.59,0.00011037,2]
[337283936,1725577303692,750.0,0.00011,2]
[337283937,1725577304822,800.0,0.00013,2]
[337283938,1725577530116,150.0,0.00025,60]
[337283939,1725577531459,150.0,0.00025,60]
[337283940,1725577532189,150.0,0.00025,60]
[337283941,1725577532796,150.0,0.00025,60]
[337283942,1725577536528,150.0,0.00025,61]
[337283943,1725577537247,150.0,0.00025,61]
[337283944,1725577537855,150.0,0.00025,61]
[337283945,1725577538487,150.0,0.00025,61]
[337283946,1725577542220,150.0,0.00025,62]
[337283947,1725577543045,150.0,0.00025,62]
[337283948,1725577543787,150.0,0.00025,62]
[337283949,1725577544540,150.0,0.00025,62]
[337283950,1725577550557,150.0,0.00027,120]
[337283951,1725577551327,150.0,0.00027,120]
[337283952,1725577552142,150.0,0.00027,120]
[337283953,1725577552804,150.0,0.00027,120]
[337283954,1725577555692,150.0,0.00027,120]
[337283955,1725577556257,150.0,0.00027,120]
[337283962,1725577727561,-24140.11575567,0.00015,10]
[337283963,1725577727581,-5000.0,0.00015,10]
[337283968,1725577770609,181.08,0.00012948,2]
[337283981,1725577831934,-360.0,0.00013202,2]
[337283982,1725577831944,-191.59,0.00013301,2]
[337283983,1725577831953,-395.38,0.00013657,2]
[337283984,1725577831962,-395.38,0.00013661,2]
[337283985,1725577831971,-395.38,0.00013664,2]
[337283986,1725577831981,-7946.67724416,0.00013664,2]
[337283987,1725577831991,-300.0,0.00013667,2]
[337283988,1725577832000,-395.38,0.00013668,2]
[337283989,1725577832010,-395.38,0.00013671,2]
[337283990,1725577832019,-395.38,0.00013675,2]
[337283991,1725577832028,-395.38,0.00013679,2]
[337283992,1725577832037,-395.38,0.00013682,2]
[337283993,1725577832046,-395.38,0.00013686,2]
[337283994,1725577832056,-395.38,0.00013689,2]
[337283995,1725577832065,-395.38,0.00013693,2]